bitfinex/quotes_ETHUSD_20251126
["timestamp","ask_amount","ask_price","bid_price","bid_amount"]
[1764164438149,0.73362041,2935.0,2934.0,0.46]
[1764164438348,0.4678,2935.1,2933.2,8.19425764]
[1764164438571,0.4678,2935.1,2933.3,0.405504]
[1764164438770,0.4678,2935.1,2933.4,13.63605372]
[1764164438938,0.4678,2935.1,2933.5,1.23084811]
[1764164439139,0.4678,2935.1,2933.9,0.405504]
[1764164439653,0.4678,2935.1,2934.0,0.56615]
[1764164439972,0.4678,2935.1,2934.1,0.405504]
[1764164440275,0.4678,2935.1,2934.0,0.4664]
[1764164440473,0.4678,2935.1,2933.9,0.09975]
[1764164440688,0.4959,2934.0,2933.4,6.81802686]
[1764164440845,0.4959,2934.0,2933.2,6.81849174]
[1764164441170,0.1998,2933.9,2933.2,10.22773761]
[1764164441375,0.1998,2933.9,2933.2,6.81849174]
[1764164441579,0.4678,2933.8,2933.2,6.81849174]
[1764164441945,0.4959,2933.3,2933.2,3.40924587]
[1764164442150,0.4959,2933.3,2932.2,10.23122568]
[1764164442350,0.3215,2933.1,2932.2,10.79737568]
[1764164442782,0.7893,2933.1,2932.2,10.23122568]
[1764164442953,0.3215,2933.1,2932.2,22.30229188]
[1764164443366,0.3215,2933.1,2932.2,18.89188332]
[1764164444350,0.4988,2932.3,2932.0,0.001]
[1764164444547,0.4593,2932.1,2930.3,0.4678]
[1764164444752,0.5607,2932.2,2930.4,3.41250341]
[1764164444753,0.0673,2930.9,2930.4,3.41250341]
[1764164444947,0.4613,2930.8,2930.4,6.82500682]
[1764164445254,0.1925,2931.0,2930.4,10.23751023]
[1764164445463,0.4613,2930.9,2930.4,3.41250341]
[1764164445857,0.4613,2930.9,2930.4,6.82500682]
[1764164446184,0.4613,2930.9,2930.4,3.41250341]
[1764164446383,0.4613,2930.9,2930.0,0.001]
[1764164446384,0.4593,2930.5,2930.0,3.4138544]
[1764164446677,0.4613,2930.9,2930.0,0.001]
[1764164446871,0.4613,2930.8,2930.0,0.001]
[1764164447655,0.82499411,2930.7,2930.0,0.001]
[1764164447857,0.0994,2930.6,2930.0,0.001]
[1764164448179,0.4613,2930.6,2930.0,0.001]
[1764164449183,0.1925,2931.0,2930.0,0.001]
[1764164449184,0.6538,2931.0,2930.0,0.001]
[1764164449362,0.4613,2930.9,2930.0,0.001]
[1764164449865,0.1925,2931.7,2930.1,0.1501]
[1764164450255,0.4613,2931.6,2930.1,0.1501]
[1764164450460,0.1925,2931.7,2930.6,1.13109811]
[1764164450655,0.1925,2931.7,2930.6,0.405504]
[1764164450861,0.1925,2931.7,2930.9,0.72559411]
[1764164451108,0.1925,2931.9,2930.9,9.38405571]
[1764164451477,0.1925,2931.9,2930.9,9.28430571]
[1764164451989,0.4613,2931.8,2930.8,6.82407532]
[1764164452161,0.4613,2931.8,2930.8,10.23611298]
[1764164452361,0.4613,2931.8,2930.8,6.82407532]
[1764164452601,0.4613,2931.8,2930.8,10.23611298]
[1764164452979,0.1925,2931.9,2930.9,9.0261116]
[1764164453790,0.6538,2931.9,2930.9,8.5587116]
[1764164454894,0.1925,2932.9,2931.8,0.1682]
[1764164455189,0.1925,2932.9,2931.2,8.5587116]
[1764164455394,0.002,2934.1,2931.9,0.09975]
[1764164455603,0.002,2934.1,2932.2,10.806974]
[1764164455804,0.002,2934.1,2932.3,1.61933948]
[1764164456007,0.4633,2934.1,2932.7,1.23084811]
[1764164456893,0.4633,2934.1,2932.9,0.405504]
[1764164457094,0.002,2934.1,2933.2,0.405504]
[1764164457323,0.002,2934.1,2933.1,8.5587116]
[1764164457540,0.002,2934.1,2933.2,1.59849811]
[1764164457753,0.002,2934.1,2933.3,0.09975]
[1764164458533,0.002,2934.1,2933.4,0.405504]
[1764164459042,0.002,2934.1,2933.6,8.5587116]
[1764164459334,0.002,2934.1,2933.9,0.405504]
[1764164459531,0.002,2934.1,2933.9,0.872904]
[1764164459954,0.002,2934.1,2934.0,0.872904]
[1764164460318,0.002,2934.1,2934.0,0.972654]
[1764164460640,0.0012,2934.1,2934.0,0.972654]
[1764164461043,0.0012,2934.1,2934.0,5.1065644]
[1764164461218,0.0012,2934.1,2934.0,4.5394144]
[1764164461405,0.0012,2934.1,2934.0,4.1339104]
[1764164462235,0.0012,2934.1,2934.0,3.40831629]
[1764164462420,0.0012,2934.1,2933.2,6.81849174]
[1764164462421,0.4625,2934.1,2933.2,6.81849174]
[1764164462607,0.1925,2933.9,2933.3,0.72559411]
[1764164462951,0.1925,2933.9,2933.2,6.81849174]
[1764164463155,0.1925,2933.9,2933.2,10.22773761]
[1764164463363,0.6538,2933.9,2933.2,10.22773761]
[1764164463646,0.6538,2933.9,2932.7,3.40982712]
[1764164463874,0.1925,2932.8,2932.7,3.40982712]
[1764164464048,0.6538,2932.8,2932.5,3.40996484]
[1764164464214,0.6538,2932.8,2931.7,6.8219029]
[1764164464410,0.4613,2932.7,2931.7,6.8219029]
[1764164465022,0.4613,2932.7,2931.2,10.23471615]
[1764164465251,0.4613,2932.7,2931.3,0.72559411]
[1764164465562,0.4613,2932.7,2931.2,10.23471615]
[1764164465913,0.4613,2932.7,2931.2,6.8231441]
[1764164466852,1.18689411,2932.7,2931.2,6.8231441]
[1764164467141,0.4613,2932.7,2931.1,6.82337688]
[1764164467361,0.4784,2932.6,2931.1,10.23506532]
[1764164467690,0.0994,2932.5,2931.1,6.82337688]
[1764164467949,0.4784,2932.6,2931.1,6.82337688]
[1764164468138,0.4784,2932.5,2931.1,6.82337688]
[1764164468635,0.1975,2931.2,2931.1,3.41168844]
[1764164469239,0.1975,2931.2,2930.7,3.41205411]
[1764164469419,0.6759,2931.2,2930.7,3.41205411]
[1764164469620,0.1975,2931.2,2930.6,10.23681156]
[1764164469817,0.4784,2931.6,2930.6,13.64908208]
[1764164470019,0.6759,2932.2,2931.2,8.5587116]
[1764164470225,0.6759,2932.2,2931.5,0.1682]
[1764164470419,0.6759,2932.2,2931.2,8.5587116]
[1764164470758,0.4784,2932.1,2931.2,8.5587116]
[1764164470930,0.4784,2932.1,2930.7,9.28430571]
[1764164471249,0.4784,2932.1,2930.9,0.72559411]
[1764164471496,0.4784,2932.1,2931.0,0.001]
[1764164472149,0.1925,2932.8,2931.2,8.5587116]
[1764164472324,0.1925,2932.8,2931.7,8.5587116]
[1764164472325,0.4784,2932.7,2931.7,8.5587116]
[1764164472528,0.4784,2932.7,2931.3,0.72559411]
[1764164473134,0.4784,2932.7,2931.4,13.64535716]
[1764164473544,0.4784,2932.7,2931.4,10.23401787]
[1764164473944,0.4784,2932.7,2931.4,6.82267858]
[1764164474153,0.5778,2932.7,2931.4,6.82267858]
[1764164474348,1.30339411,2932.7,2931.4,6.82267858]
[1764164474653,0.4571,2932.6,2931.4,6.82267858]
[1764164475265,0.4571,2932.6,2931.4,3.41133929]
[1764164476773,0.4571,2932.6,2931.3,13.64578751]
[1764164477276,0.4571,2932.6,2931.3,17.05724317]
[1764164477651,0.6546,2934.4,2932.5,8.7078116]
[1764164477850,0.4583,2934.1,2933.1,8.5587116]
[1764164478051,0.4583,2934.1,2932.7,8.5587116]
[1764164478052,0.6496,2933.9,2932.7,8.5587116]
[1764164478561,0.4571,2933.8,2932.7,8.5587116]
[1764164479376,0.4571,2933.8,2932.8,13.6388434]
[1764164479565,0.4571,2933.8,2932.8,10.22913255]
[1764164479878,0.4571,2933.8,2932.8,13.6388434]
[1764164481751,0.4571,2933.8,2932.8,6.8194217]
[1764164481939,0.4571,2933.8,2932.8,10.22913255]
[1764164482950,0.4571,2933.8,2932.8,13.6388434]
[1764164483371,0.4571,2933.8,2932.8,3.40971085]
[1764164483855,0.4571,2933.8,2932.7,8.5587116]
[1764164485052,0.4563,2933.8,2932.7,9.0261116]
[1764164485554,0.4563,2933.8,2932.8,13.6388434]
[1764164487889,0.1925,2933.9,2932.8,17.04855425]
[1764164488089,0.1925,2933.9,2933.2,8.5587116]
[1764164489462,0.1822,2933.9,2933.0,0.405504]
[1764164489761,0.1822,2933.9,2933.1,13.6374484]
[1764164490383,0.0012,2934.1,2933.2,0.4682]
[1764164490585,0.4583,2934.1,2933.3,8.5587116]
[1764164491296,0.4583,2934.1,2933.1,13.6374484]
[1764164491591,0.4583,2934.1,2933.0,10.22843502]
[1764164491798,0.1822,2933.2,2933.0,6.81895668]
[1764164491981,0.4856,2933.1,2933.0,3.40947834]
[1764164492706,0.4571,2933.4,2933.0,10.22843502]
[1764164492860,0.1822,2933.5,2933.0,10.22843502]
[1764164493574,0.1822,2933.7,2933.0,10.22843502]
[1764164493776,0.1822,2933.7,2933.0,6.81895668]
[1764164494364,0.1822,2933.7,2933.0,3.40947834]
[1764164495966,0.1822,2933.7,2932.9,13.63837836]
[1764164497067,0.6393,2933.7,2932.9,13.63837836]
[1764164498105,0.4571,2933.6,2932.9,13.63837836]
[1764164498308,0.4571,2933.6,2932.9,6.81918918]
[1764164498574,0.4856,2933.0,2932.9,3.40959459]
[1764164499676,0.4571,2933.3,2932.9,10.22878377]
[1764164499903,0.4571,2933.3,2932.8,0.001]
[1764164500609,0.6678,2932.9,2932.8,0.001]
[1764164500994,1.1249,2932.9,2932.8,0.001]
[1764164501195,0.1822,2932.9,2932.8,0.001]
[1764164501549,0.6678,2932.9,2932.8,0.001]
[1764164501708,1.1249,2932.9,2932.8,0.001]
[1764164501911,0.4571,2933.4,2932.8,0.001]
[1764164502319,0.1822,2932.9,2932.8,0.001]
[1764164502610,0.6678,2932.9,2932.8,0.001]
[1764164502782,0.4571,2933.4,2932.8,0.001]
[1764164504107,0.6662,2932.9,2932.8,0.001]
[1764164504510,1.1413,2932.9,2932.8,0.001]
[1764164504880,0.1871,2932.9,2932.8,0.001]
[1764164505391,1.1413,2932.9,2932.8,0.001]
[1764164505604,0.72559411,2932.8,2931.2,6.8231441]
[1764164505921,0.8387,2932.8,2931.2,10.23471615]
[1764164506123,0.4751,2932.7,2931.2,10.23471615]
[1764164506544,0.4751,2932.7,2931.5,8.5587116]
[1764164508104,0.4751,2932.7,2931.6,10.23331968]
[1764164508311,0.1871,2932.9,2932.0,8.5587116]
[1764164508621,0.1871,2932.9,2932.8,0.001]
[1764164508992,0.6662,2932.9,2932.8,0.001]
[1764164509186,1.1413,2932.9,2932.8,0.001]
[1764164510027,1.1405,2932.9,2932.8,0.001]
[1764164519208,0.1863,2932.9,2932.8,0.001]
[1764164520309,0.4751,2933.3,2932.8,0.001]
[1764164520745,0.1822,2933.7,2932.8,0.001]
[1764164521404,0.1822,2933.7,2932.8,0.4706]
[1764164521605,0.002,2933.8,2932.8,0.4706]
[1764164522405,0.002,2933.8,2932.9,10.22878377]
[1764164522612,0.002,2933.8,2932.9,10.69838377]
[1764164522813,0.002,2933.8,2933.7,8.64591831]
[1764164523054,0.002,2933.8,2933.7,10.24661642]
[1764164523342,0.002,2933.8,2933.1,0.4696]
[1764164524646,0.002,2933.8,2933.2,10.22773761]
[1764164525650,0.002,2933.8,2933.1,3.40935364]
[1764164525849,0.002,2933.8,2933.1,6.81871574]
[1764164526350,0.002,2933.8,2933.1,10.69807784]
[1764164527718,0.002,2933.8,2933.1,10.22807784]
[1764164528220,0.002,2933.8,2933.1,10.69807784]
[1764164528969,0.002,2933.8,2933.7,0.47]
[1764164529317,0.002,2933.8,2933.7,0.94]
[1764164530528,0.002,2933.8,2933.7,3.40866482]
[1764164531018,0.9165,2933.8,2933.7,3.40866482]
[1764164531547,0.9165,2933.8,2933.2,6.81849174]
[1764164532970,0.4115,2933.3,2933.2,3.40924587]
[1764164533776,0.8659,2933.3,2932.8,0.001]
[1764164533956,0.599,2932.9,2932.8,3.41067816]
[1764164534356,1.0547,2932.9,2932.8,3.41067816]
[1764164534677,1.0539,2932.9,2932.8,0.001]
[1764164534844,0.5982,2932.9,2932.8,0.001]
[1764164536057,1.0539,2932.9,2932.8,0.001]
[1764164539706,8.17791831,2933.8,2932.8,0.001]
[1764164539707,0.4557,2933.5,2932.8,0.001]
[1764164539997,1.1247,2932.9,2932.8,0.001]
[1764164540175,0.669,2932.9,2932.8,0.001]
[1764164540595,1.1247,2932.9,2932.8,0.001]
[1764164541176,0.669,2932.9,2932.8,0.001]
[1764164541493,1.1247,2932.9,2932.8,0.001]
[1764164544375,8.17791831,2933.8,2932.8,0.001]
[1764164544376,0.4557,2933.6,2932.8,0.001]
[1764164544699,0.002,2933.8,2932.8,0.001]
[1764164544700,0.669,2932.9,2932.8,0.001]
[1764164545102,1.1247,2932.9,2932.8,0.001]
[1764164546678,1.1267,2932.9,2932.8,0.001]
[1764164547385,1.2261,2932.9,2932.8,0.001]
[1764164547728,1.85229411,2932.9,2932.8,0.001]
[1764164547941,1.95169411,2932.9,2932.8,0.001]
[1764164548227,1.85229411,2932.9,2932.8,0.001]
[1764164548386,1.95169411,2932.9,2932.8,0.001]
[1764164548732,5.3612887,2932.9,2932.8,0.001]
[1764164549029,5.7667927,2932.9,2932.8,0.001]
[1764164549385,0.72559411,2932.6,2932.5,0.001]
[1764164549590,5.0785375,2932.6,2932.5,0.001]
[1764164549805,5.0785375,2932.6,2931.2,6.82305433]
[1764164550007,0.4557,2932.5,2931.1,3.41162951]
[1764164550320,0.0994,2932.2,2931.1,6.82331795]
[1764164550814,0.4557,2932.1,2931.0,3.41280407]
[1764164551019,0.4557,2932.1,2931.0,0.001]
[1764164551325,8.21978768,2932.8,2931.1,6.99157688]
[1764164551617,0.4557,2932.1,2931.1,6.99157688]
[1764164555722,0.4557,2932.1,2931.1,3.41168844]
[1764164555887,0.4557,2932.1,2931.0,0.001]
[1764164555888,0.72559411,2932.0,2931.0,0.001]
[1764164556223,0.82499411,2932.0,2931.0,0.001]
[1764164556390,0.6358,2931.9,2931.0,0.001]
[1764164556792,0.4557,2931.8,2931.0,3.41280132]
[1764164557826,0.4557,2931.8,2931.0,0.001]
[1764164559336,0.4549,2931.8,2931.0,0.001]
[1764164559537,0.4889,2931.1,2931.0,0.001]
[1764164561031,19.76727286,2931.1,2931.0,0.001]
[1764164561222,21.87517186,2931.1,2931.0,0.001]
[1764164561416,22.33087186,2931.1,2931.0,0.001]
[1764164561597,10.74326511,2931.1,2931.0,0.001]
[1764164561813,5.25469911,2931.1,2931.0,0.001]
[1764164562013,1.67019411,2931.1,2931.0,0.001]
[1764164562954,2.07569811,2931.1,2931.0,0.001]
[1764164563155,5.58678655,2931.1,2931.0,0.001]
[1764164563557,10.24152655,2931.1,2931.0,0.001]
[1764164564212,12.47948055,2931.1,2931.0,0.001]
[1764164565036,5.58678655,2931.1,2931.0,0.001]
[1764164565208,17.60372055,2931.1,2931.0,0.001]
[1764164565407,16.49388555,2931.1,2931.0,0.001]
[1764164565644,13.39670955,2931.1,2931.0,0.001]
[1764164565836,9.65535011,2931.1,2931.0,0.001]
[1764164566363,12.23103855,2931.1,2931.0,0.001]
[1764164567230,17.36439155,2931.1,2931.0,0.001]
[1764164567614,0.9446,2931.1,2931.0,0.001]
[1764164568433,0.4889,2931.1,2931.0,0.001]
[1764164568813,0.0994,2931.8,2931.0,0.4726]
[1764164569025,0.0994,2931.7,2931.0,0.001]
[1764164569220,0.4922,2931.6,2931.0,0.001]
[1764164569633,0.5916,2931.6,2931.0,0.001]
[1764164569822,0.4922,2931.6,2931.0,0.001]
[1764164570018,0.72559411,2931.5,2931.0,0.001]
[1764164570428,0.4526,2931.1,2931.0,0.001]
[1764164570951,0.4922,2931.4,2931.0,0.001]
[1764164571529,0.4526,2931.1,2931.0,0.001]
[1764164572344,0.9448,2931.1,2931.0,0.001]
[1764164572864,5.08208255,2931.1,2931.0,0.001]
[1764164573108,1.76979411,2931.1,2931.0,0.001]
[1764164573944,5.18148255,2931.1,2931.0,0.001]
[1764164574451,5.58698655,2931.1,2931.0,0.001]
[1764164574652,2.17529811,2931.1,2931.0,0.001]
[1764164574826,1.76979411,2931.1,2931.0,0.001]
[1764164576152,5.18148255,2931.1,2931.0,0.001]
[1764164576355,1.76979411,2931.1,2931.0,0.001]
[1764164577055,10.63499655,2931.1,2931.0,0.001]
[1764164577258,14.96970263,2931.1,2931.0,0.001]
[1764164577947,15.78569419,2931.1,2931.0,0.001]
[1764164578337,19.19738263,2931.1,2931.0,0.001]
[1764164578534,4.97803919,2931.1,2931.0,0.001]
[1764164578740,8.38972763,2931.1,2931.0,0.001]
[1764164578938,12.68258563,2931.1,2931.0,0.001]
[1764164579257,12.78198563,2931.1,2931.0,0.001]
[1764164579647,9.27089719,2931.1,2931.0,0.001]
[1764164579852,2.80960419,2931.1,2931.0,0.001]
[1764164580027,9.72451219,2931.1,2931.0,0.001]
[1764164580229,6.83964219,2931.1,2931.0,0.001]
[1764164580430,6.74024219,2931.1,2931.0,0.001]
[1764164580630,10.15193063,2931.1,2931.0,0.001]
[1764164580934,8.46469863,2931.1,2931.0,0.001]
[1764164581131,8.56409863,2931.1,2931.0,0.001]
[1764164581962,23.23808263,2931.1,2931.0,0.001]
[1764164582165,24.14558524,2931.1,2931.0,0.001]
[1764164582361,24.15640328,2931.1,2931.0,0.001]
[1764164582666,24.69174529,2931.1,2931.0,0.001]
[1764164583039,28.90171989,2931.1,2931.0,0.001]
[1764164583238,0.0994,2930.5,2930.4,0.001]
[1764164583465,0.504904,2930.1,2930.0,0.001]
[1764164583670,17.149941,2929.8,2928.4,0.4716]
[1764164583872,0.504904,2929.5,2927.7,0.1682]
[1764164584173,5.073604,2928.9,2927.7,0.4756]
[1764164584401,4.05036211,2928.7,2927.7,0.4756]
[1764164584529,8.29795243,2928.7,2927.3,0.4756]
[1764164584867,8.29795243,2928.7,2927.0,4.04295324]
[1764164584868,9.26575243,2928.7,2927.0,4.04295324]
[1764164585065,27.13720543,2928.7,2927.0,4.04295324]
[1764164585473,27.13720543,2928.7,2927.0,0.6265]
[1764164585630,27.67299968,2928.7,2927.0,4.04296435]
[1764164585957,21.29113111,2928.6,2927.0,0.1509]
[1764164586131,21.83882519,2928.6,2927.0,0.1509]
[1764164586331,22.75307052,2928.6,2927.0,0.1509]
[1764164586668,20.95657535,2928.6,2927.0,0.1509]
[1764164587032,37.15585035,2928.6,2927.0,0.1509]
[1764164587237,21.77253535,2928.6,2927.0,3.56732762]
[1764164587435,21.77253535,2928.6,2927.0,0.1509]
[1764164587634,14.77124502,2928.6,2927.0,3.56733433]
[1764164587835,13.62073002,2928.6,2927.1,0.4696]
[1764164588036,6.24160502,2928.6,2927.1,0.4696]
[1764164588269,8.30381102,2928.6,2927.3,0.4696]
[1764164588469,8.30381102,2928.6,2927.0,4.03696614]
[1764164588771,8.30381102,2928.6,2927.0,7.45343351]
[1764164588971,8.30381102,2928.6,2927.3,0.4696]
[1764164589174,5.59520519,2928.6,2927.3,0.4696]
[1764164589374,9.00980602,2928.6,2927.3,0.4696]
[1764164589596,5.59520519,2928.6,2927.3,0.4696]
[1764164590102,2.10141008,2928.6,2927.0,10.40030088]
[1764164590304,3.96264011,2928.6,2927.7,0.4696]
[1764164590618,1.60789811,2928.6,2928.1,0.1722]
[1764164590922,4.332871,2928.6,2928.1,0.1722]
[1764164591073,0.1988,2928.9,2928.1,0.1722]
[1764164591275,0.4696,2929.0,2928.1,3.5873839]
[1764164591493,15.014203,2928.9,2928.1,0.1722]
[1764164591824,0.992404,2928.6,2927.9,0.1722]
[1764164592304,0.82499411,2928.7,2927.9,0.1722]
[1764164592503,0.405504,2928.6,2927.9,0.1722]
[1764164592891,0.405504,2928.7,2928.0,0.4696]
[1764164593093,0.992404,2928.6,2927.9,0.1722]
[1764164593292,0.504904,2928.6,2927.9,0.6418]
[1764164593508,0.0994,2928.9,2927.9,0.6418]
[1764164593699,0.0994,2928.9,2928.2,0.4696]
[1764164593878,0.72559411,2929.1,2928.2,0.4696]
[1764164594205,1.0267485,2929.2,2928.2,0.4696]
[1764164594416,0.0994,2929.2,2928.2,0.4696]
[1764164594588,0.405504,2929.1,2928.2,0.4696]
[1764164594793,0.405504,2929.1,2928.3,3.41495065]
[1764164595178,1.02669931,2929.3,2928.5,0.4766]
[1764164595376,0.82499411,2929.4,2928.5,0.4766]
[1764164595702,0.0994,2929.4,2928.5,0.4766]
[1764164595902,0.0994,2929.7,2928.5,0.4766]
[1764164596316,4.674562,2929.8,2928.5,0.4766]
[1764164596636,0.72559411,2929.5,2928.5,0.4766]
[1764164596782,0.72559411,2929.5,2928.6,3.41460083]
[1764164596986,0.405504,2929.7,2928.5,7.30596958]
[1764164597213,2.126544,2929.4,2928.6,0.4756]
[1764164597401,0.72559411,2929.4,2928.6,0.4756]
[1764164597606,0.495,2930.3,2929.3,0.6281]
[1764164597804,0.405504,2930.0,2929.4,0.4756]
[1764164598033,0.72559411,2930.0,2929.4,0.4756]
[1764164598192,11.295492,2930.1,2929.4,0.4756]
[1764164598386,0.72559411,2929.7,2929.4,0.4756]
[1764164598611,0.405504,2929.8,2929.4,0.4756]
[1764164598882,3.24505,2929.7,2929.4,0.4756]
[1764164599083,0.405504,2929.8,2929.4,0.4756]
[1764164600588,0.72559411,2929.6,2929.1,0.1525]
[1764164600798,0.4756,2930.2,2929.7,0.4756]
[1764164601020,0.1988,2930.8,2930.1,0.6265]
[1764164601223,0.6938,2930.8,2930.1,0.6265]
[1764164601707,0.0994,2930.7,2930.1,0.6265]
[1764164601896,0.72559411,2930.5,2929.6,0.4756]
[1764164602086,1.22059411,2930.7,2929.6,0.4756]
[1764164602290,0.002,2930.1,2929.6,0.4756]
[1764164602617,0.002,2930.1,2929.3,0.4756]
[1764164602921,0.405504,2930.0,2929.2,0.4756]
[1764164603124,0.504904,2930.0,2929.2,0.4756]
[1764164603324,0.72559411,2929.8,2929.1,0.1525]
[1764164603490,0.1971,2929.9,2929.1,0.1525]
[1764164603992,0.1971,2929.9,2929.1,0.6281]
[1764164605030,0.92269411,2929.9,2929.1,0.6281]
[1764164605233,0.2965,2929.9,2929.1,0.6281]
[1764164605403,0.1971,2929.9,2929.1,0.6281]
[1764164606020,0.405504,2929.8,2929.1,0.6281]
[1764164606804,0.405504,2929.8,2929.1,0.1525]
[1764164607053,0.0994,2929.5,2928.9,0.1525]
[1764164607752,0.405504,2929.6,2928.9,0.1525]
[1764164608253,0.504904,2929.6,2928.9,0.1525]
[1764164608457,0.999904,2929.6,2928.9,0.1525]
[1764164608751,0.999104,2929.6,2928.9,0.1525]
[1764164609057,0.0994,2929.5,2928.5,0.001]
[1764164609267,0.0994,2929.4,2928.5,3.41568573]
[1764164609426,0.0994,2929.4,2928.5,3.89128573]
[1764164609955,0.0994,2929.5,2928.6,0.4756]
[1764164610159,1.22059411,2929.7,2928.6,0.4756]
[1764164610322,0.0994,2929.5,2928.6,0.4756]
[1764164610731,0.405504,2929.4,2928.6,0.4756]
[1764164611131,0.405504,2929.4,2928.5,0.001]
[1764164611367,0.405504,2929.2,2928.5,0.001]
[1764164611568,0.405504,2929.4,2928.5,0.4766]
[1764164611772,1.13109811,2929.2,2928.5,0.4766]
[1764164612080,0.405504,2929.5,2928.5,3.89130181]
[1764164612232,0.504904,2929.5,2928.5,3.89130181]
[1764164612431,0.504904,2929.5,2928.6,0.4756]
[1764164612867,0.405504,2929.5,2928.6,0.4756]
[1764164613078,0.504904,2929.5,2928.6,3.89018384]
[1764164613283,0.405504,2929.5,2928.7,0.4756]
[1764164613601,2.66824017,2930.1,2929.4,0.6281]
[1764164613792,0.73311636,2930.0,2929.5,0.4756]
[1764164614278,0.73311636,2929.9,2929.5,0.4756]
[1764164614453,0.72559411,2929.8,2929.5,0.4756]
[1764164614657,0.405504,2929.9,2929.5,0.4756]
[1764164615572,0.405504,2929.9,2929.4,0.1525]
[1764164615573,2.179914,2929.8,2929.4,0.1525]
[1764164615758,0.72559411,2929.8,2929.4,0.1525]
[1764164615961,0.72559411,2929.8,2929.0,0.4756]
[1764164615962,0.72559411,2929.8,2929.2,0.1525]
[1764164616283,1.63388489,2929.7,2928.6,0.4756]
[1764164616487,0.0994,2929.5,2928.6,0.4756]
[1764164617482,0.0994,2929.5,2928.6,3.89009344]
[1764164617648,0.405504,2929.5,2928.6,3.89009344]
[1764164618011,0.504904,2929.5,2928.6,3.89009344]
[1764164618155,0.999904,2929.5,2928.6,3.89009344]
[1764164618990,0.900504,2929.5,2928.6,3.89009344]
[1764164619506,0.999904,2929.5,2928.6,3.89009344]
[1764164619896,0.900504,2929.5,2928.6,3.89009344]
[1764164620097,0.405504,2929.5,2928.6,0.4756]
[1764164620299,0.405504,2929.3,2928.5,0.001]
[1764164620597,3.62215,2928.8,2928.5,0.001]
[1764164620798,0.405504,2929.1,2928.5,0.001]
[1764164620998,0.72559411,2928.7,2928.5,0.001]
[1764164621405,0.405504,2928.9,2928.5,0.001]
[1764164621577,0.405504,2929.0,2928.2,3.89062396]
[1764164622303,0.405504,2929.0,2928.2,0.4756]
[1764164622489,0.405504,2929.0,2928.2,3.89065038]
[1764164623003,1.14120505,2929.0,2928.2,3.89065038]
[1764164623299,1.24060505,2929.0,2928.2,0.4756]
[1764164624004,1.63620505,2929.0,2928.2,3.89062731]
[1764164624214,0.73570105,2928.9,2928.2,3.89062731]
[1764164624382,0.405504,2929.1,2928.3,0.4756]
[1764164626232,0.83563543,2929.2,2928.3,0.4756]
[1764164626233,0.73623543,2929.2,2929.0,0.4756]
[1764164626390,0.73623543,2929.2,2929.1,0.4756]
[1764164626585,1.65048076,2929.4,2928.6,0.4756]
[1764164626926,0.73623543,2929.3,2928.6,0.4756]
[1764164627217,0.73623543,2929.2,2928.6,0.4756]
[1764164627419,0.73623543,2929.1,2928.6,0.4756]
[1764164627721,0.405504,2929.4,2928.6,0.4756]
[1764164627918,0.405504,2929.4,2929.0,0.4756]
[1764164628919,1.14171294,2929.4,2929.0,0.4756]
[1764164629119,0.73620894,2929.3,2929.0,0.4756]
[1764164629421,0.405504,2929.5,2929.0,0.4756]
[1764164630014,0.4932,2929.1,2928.1,0.4756]
[1764164630214,0.3395,2928.9,2928.1,3.89078113]
[1764164630410,0.405504,2929.2,2928.1,7.30596503]
[1764164630610,0.83556385,2929.2,2928.2,0.4756]
[1764164630926,0.73616385,2929.1,2928.2,0.4756]
[1764164631113,0.405504,2929.2,2928.2,0.4756]
[1764164631499,0.73621763,2929.4,2928.2,0.4756]
[1764164631500,0.405504,2929.3,2928.2,0.4756]
[1764164632388,0.4652,2929.2,2928.3,6.8299013]
[1764164632588,0.4652,2929.2,2928.3,3.41495065]
[1764164632815,1.20141763,2929.2,2928.3,3.41495065]
[1764164633113,1.20141763,2929.2,2928.3,6.8299013]
[1764164633322,1.20141763,2929.2,2928.4,0.4756]
[1764164633523,1.20061763,2929.2,2928.4,0.4756]
[1764164634416,0.73621763,2929.2,2928.5,6.82943486]
[1764164634613,0.73621763,2929.1,2928.5,6.82943486]
[1764164634928,0.405504,2929.4,2928.5,6.82943486]
[1764164635100,1.14253371,2929.4,2929.0,0.4764]
[1764164635637,1.14253371,2929.4,2928.6,0.4764]
[1764164635836,1.60773371,2929.4,2928.6,0.4764]
[1764164636048,0.73702971,2929.3,2928.6,0.4764]
[1764164636539,0.73702971,2929.2,2928.7,3.41448424]
[1764164636727,0.405504,2929.4,2928.7,3.41448424]
[1764164637233,1.14273841,2929.4,2928.7,3.89088424]
[1764164637719,1.14273841,2929.4,2928.6,3.41454496]
[1764164637921,0.73723441,2929.3,2928.5,3.8910949]
[1764164638238,0.73723441,2929.2,2928.5,7.30581233]
[1764164638441,0.405504,2929.4,2928.5,7.30581233]
[1764164638608,0.4652,2929.3,2928.5,3.4146949]
[1764164638808,1.20250469,2929.3,2928.5,6.82941233]
[1764164639106,1.20250469,2929.3,2928.5,3.8910949]
[1764164639325,1.20250469,2929.3,2928.5,3.4146949]
[1764164639523,0.4652,2929.2,2928.5,3.4146949]
[1764164639836,0.4652,2929.2,2928.3,0.4764]
[1764164639837,0.4652,2929.2,2928.3,3.89233131]
[1764164640236,0.4652,2929.2,2928.3,7.30728196]
[1764164640542,0.5646,2929.2,2928.3,7.30728196]
[1764164641253,0.5646,2929.2,2928.3,3.41593131]
[1764164641858,0.31997531,2929.1,2928.3,6.83088196]
[1764164642025,0.31997531,2929.0,2928.3,6.83088196]
[1764164642220,0.31997531,2928.9,2928.3,3.41593131]
[1764164642424,0.31997531,2928.8,2928.3,3.41593131]